bitfinex/quotes_ETHUSD_20210701
["timestamp","ask_amount","ask_price","bid_price","bid_amount"]
[1625172517930,7.0919,2114.6,2113.8,3.8]
[1625172519631,12.1019,2114.6,2113.8,3.8]
[1625172520525,12.1019,2114.6,2113.2,10.8073]
[1625172520526,12.1019,2114.6,2113.2,10.6573]
[1625172520730,20.1019,2114.6,2113.2,10.6573]
[1625172520829,0.53717479,2114.5,2113.2,10.6573]
[1625172521075,3.07923562,2114.5,2113.2,10.6573]
[1625172521179,5.54040728,2114.5,2113.0,0.01]
[1625172521327,0.01873136,2114.4,2113.0,0.01]
[1625172521574,4.16195366,2114.4,2113.0,0.01]
[1625172521776,9.17195366,2114.4,2113.0,0.01]
[1625172521874,19.71401449,2114.4,2113.0,0.01]
[1625172521978,7.09484,2113.7,2113.0,0.01]
[1625172522191,12.10484,2113.7,2113.0,0.01]
[1625172522293,11.23714,2113.7,2113.0,0.01]
[1625172522390,16.24714,2113.7,2113.0,0.01]
[1625172522978,4.1423,2113.7,2113.0,0.07]
[1625172523316,0.53717479,2114.0,2113.0,0.01]
[1625172524014,0.53717479,2114.3,2113.0,0.01]
[1625172524366,0.53717479,2114.3,2113.0,7.10334]
[1625172524516,0.53717479,2114.3,2113.0,16.36804]
[1625172524618,0.53717479,2114.3,2113.1,0.1]
[1625172524967,0.53717479,2114.3,2113.0,0.01]
[1625172525068,4.4878,2114.3,2113.0,0.01]
[1625172525301,9.4978,2114.3,2113.0,0.01]
[1625172525403,7.0951,2113.8,2113.0,0.01]
[1625172525750,12.1051,2113.8,2113.0,0.01]
[1625172526705,7.0951,2113.8,2113.0,0.01]
[1625172526902,7.0951,2113.8,2113.1,0.08]
[1625172527003,7.0951,2113.8,2113.1,4.1483]
[1625172527204,9.45975,2114.1,2113.1,4.1483]
[1625172527304,14.46975,2114.1,2113.1,4.0683]
[1625172527729,5.01,2114.1,2113.1,9.0783]
[1625172527879,3.54762,2114.2,2113.1,9.0783]
[1625172527880,7.0933,2114.2,2113.1,9.0783]
[1625172527977,7.0933,2114.2,2113.2,0.06]
[1625172528078,7.0933,2114.2,2113.2,6.37781911]
[1625172528285,3.54661,2114.7,2113.2,11.91711375]
[1625172528381,3.54661,2114.7,2113.3,0.04161712]
[1625172528486,3.54661,2114.7,2113.3,0.39161712]
[1625172528734,0.2,2114.9,2113.5,0.10649376]
[1625172529032,0.2,2114.9,2113.5,0.6116835]
[1625172529130,0.2,2114.9,2113.7,2.9]
[1625172529233,0.2,2114.9,2113.7,6.44686313]
[1625172529433,0.2,2114.9,2113.7,6.4117]
[1625172529689,0.2,2114.9,2113.7,11.46307292]
[1625172529782,0.2,2114.9,2113.7,11.4217]
[1625172529981,0.2,2114.9,2113.7,11.45654801]
[1625172530181,0.2,2114.9,2113.7,11.4217]
[1625172530382,0.2,2114.9,2113.7,6.4117]
[1625172530486,7.09155,2114.7,2113.7,6.4117]
[1625172530737,7.09155,2114.7,2113.8,0.08]
[1625172531738,7.09155,2114.7,2113.7,6.4117]
[1625172531840,12.10155,2114.7,2113.7,6.4117]
[1625172531942,12.10155,2114.7,2113.7,3.5117]
[1625172532044,12.10155,2114.7,2113.5,10.2224]
[1625172534045,13.02002193,2114.7,2113.5,10.2224]
[1625172534192,7.09316,2114.1,2113.4,10.0922]
[1625172534384,12.10316,2114.1,2113.3,11.03]
[1625172534586,12.11531006,2114.1,2113.3,11.03]
[1625172534684,12.11531006,2114.1,2113.2,21.50518636]
[1625172534786,12.11531006,2114.1,2113.2,10.86281057]
[1625172534937,5.02215006,2114.1,2113.2,10.86281057]
[1625172535034,14.4782396,2114.3,2113.2,10.86281057]
[1625172535185,14.46755,2114.3,2113.3,0.1]
[1625172535588,14.46755,2114.3,2113.2,6.86281057]
[1625172536478,7.09343,2114.0,2113.2,6.86281057]
[1625172537245,7.09343,2114.0,2113.2,6.31781911]
[1625172537391,7.10358849,2114.0,2113.2,6.31781911]
[1625172537491,7.09343,2114.0,2113.2,6.31781911]
[1625172538089,7.09343,2114.0,2113.3,0.06]
[1625172538680,7.09343,2114.0,2113.2,6.31781911]
[1625172538885,14.46755,2114.3,2113.2,13.41151911]
[1625172538985,14.46755,2114.3,2113.2,18.9965117]
[1625172539084,5.01,2114.3,2113.2,15.4676117]
[1625172539234,5.01,2114.3,2113.3,0.1]
[1625172539334,8.55653,2114.6,2113.3,0.1]
[1625172539634,8.55653,2114.6,2113.4,3.54609]
[1625172539834,8.55653,2114.6,2113.5,0.04]
[1625172540086,12.02473,2114.9,2113.5,0.61490348]
[1625172540185,0.2,2114.9,2113.6,3.74553]
[1625172540285,0.2,2114.9,2113.7,0.04535065]
[1625172540387,0.2,2114.9,2113.7,4.0617]
[1625172540583,0.2,2114.9,2113.7,9.0717]
[1625172540945,0.2,2114.9,2113.7,9.10974338]
[1625172541146,0.2,2114.9,2114.2,7.09029]
[1625172541243,0.2,2114.9,2114.2,17.41419964]
[1625172543443,0.2,2114.9,2114.2,10.32390964]
[1625172543791,0.2,2114.9,2114.3,0.08]
[1625172544391,7.29049,2114.9,2114.3,0.08]
[1625172544495,7.29049,2114.9,2114.2,10.32390964]
[1625172544593,12.30049,2114.9,2114.2,10.32390964]
[1625172547046,15.84623,2114.9,2114.2,10.32390964]
[1625172547143,15.84623,2114.9,2114.2,6.31610964]
[1625172547297,15.85736921,2114.9,2113.7,5.01]
[1625172547396,15.85736921,2114.9,2113.5,47.0981]
[1625172547699,15.84623,2114.9,2113.5,53.41474563]
[1625172547794,15.84623,2114.9,2113.6,0.14]
[1625172548289,15.84623,2114.9,2113.6,7.23191]
[1625172548441,15.84623,2114.9,2113.6,12.75049671]
[1625172548543,15.84623,2114.9,2113.7,0.04]
[1625172548993,15.84623,2114.9,2113.6,3.5455764]
[1625172549094,15.84623,2114.9,2113.5,43.00714145]
[1625172549095,20.89053,2114.9,2113.5,43.00714145]
[1625172549197,28.89053,2114.9,2113.5,37.71264563]
[1625172549294,28.90131546,2114.9,2113.5,37.71264563]
[1625172549398,28.90131546,2114.9,2113.5,44.80481563]
[1625172549399,25.34479,2114.9,2113.5,44.80481563]
[1625172549492,25.34479,2114.9,2113.5,37.71264563]
[1625172549844,17.34479,2114.9,2113.5,37.71264563]
[1625172549973,3.54643,2114.7,2113.5,38.16023871]
[1625172550073,5.01,2114.7,2113.6,0.2]
[1625172550175,12.30049,2114.9,2113.6,0.2]
[1625172550269,12.30049,2114.9,2113.7,0.12]
[1625172551177,12.30049,2114.9,2113.7,9.45495]
[1625172551374,12.30049,2114.9,2113.7,5.01]
[1625172551576,12.30049,2114.9,2113.5,47.98834513]
[1625172551729,12.30049,2114.9,2113.5,46.26844513]
[1625172551974,12.30049,2114.9,2113.5,42.72264563]
[1625172552827,3.54626,2114.8,2113.5,42.72264563]
[1625172552978,7.09211,2114.4,2113.6,0.08]
[1625172553629,9.45614,2114.7,2113.6,0.08]
[1625172553781,14.46614,2114.7,2113.6,0.08]
[1625172555345,7.09168,2114.5,2113.7,3.5455958]
[1625172555545,7.09168,2114.5,2113.8,0.48425954]
[1625172555746,7.09168,2114.5,2113.7,8.5555958]
[1625172555842,7.09168,2114.5,2113.7,3.5455958]
[1625172555942,7.09168,2114.5,2113.8,0.59546383]
[1625172556145,9.45614,2114.7,2113.9,0.06]
[1625172557405,7.0912,2114.6,2113.9,7.15141]
[1625172557554,7.0912,2114.6,2113.9,12.16141]
[1625172558940,7.0912,2114.6,2114.0,0.04]
[1625172559745,7.0912,2114.6,2113.9,12.10141]
[1625172561696,0.2,2114.9,2113.9,5.01]
[1625172561897,7.09125,2114.5,2113.8,0.81180618]
[1625172561996,7.09125,2114.5,2113.6,9.94710536]
[1625172562095,7.09125,2114.5,2113.6,14.95710536]
[1625172562197,7.09125,2114.5,2113.7,0.2]
[1625172563350,9.45614,2114.7,2113.7,5.1801958]
[1625172563453,3.54626,2114.8,2114.0,7.09106]
[1625172563568,0.2,2114.9,2114.0,16.83226205]
[1625172563805,0.2,2114.9,2114.2,3.54474]
[1625172564006,0.2,2114.9,2114.3,0.16]
[1625172564352,0.2,2114.9,2114.5,3.54415]
[1625172564504,0.2,2114.9,2114.5,13.2357428]
[1625172564609,0.2,2114.9,2114.7,7.08829]
[1625172564806,0.2,2114.9,2114.7,12.09829]
[1625172565004,0.2,2114.9,2114.7,15.09829]
[1625172565850,0.2,2114.9,2114.7,8.01]
[1625172566050,0.2,2114.9,2114.8,0.2]
[1625172566200,0.2,2114.9,2114.8,9.85]
[1625172566298,0.2,2114.9,2114.8,0.2]
[1625172567155,0.0001,2114.9,2114.8,29.05]
[1625172567440,0.0001,2114.9,2114.8,34.06]
[1625172567639,10.63292,2115.5,2114.9,30.15]
[1625172567747,6.87954359,2115.6,2114.9,30.59343762]
[1625172567966,6.87954359,2115.6,2115.0,4.3169]
[1625172568060,6.87954359,2115.6,2115.0,9.3269]
[1625172568210,6.87954359,2115.6,2115.1,0.04]
[1625172568915,0.00954359,2115.6,2115.3,13.40274967]
[1625172569013,0.00954359,2115.6,2115.3,18.41274967]
[1625172569562,0.00954359,2115.6,2115.3,6.31651967]
[1625172569668,0.00954359,2115.6,2115.2,1.1431]
[1625172571655,0.00954359,2115.6,2115.0,5.01]
[1625172571852,0.00954359,2115.6,2114.8,64.98930089]
[1625172572053,0.00954359,2115.6,2114.9,0.12]
[1625172572560,7.09724359,2115.6,2114.9,7.20746]
[1625172572760,7.09724359,2115.6,2114.9,12.21746]
[1625172573114,0.00954359,2115.6,2114.9,12.21746]
[1625172573312,0.00954359,2115.6,2115.0,4.8011]
[1625172573560,0.00954359,2115.6,2115.0,9.8111]
[1625172573660,0.00954359,2115.6,2115.0,4.8011]
[1625172573761,0.2,2115.9,2115.1,0.18]
[1625172574062,0.2,2115.9,2115.1,7.26693]
[1625172574063,7.08718,2115.8,2115.1,7.26693]
[1625172574263,7.08718,2115.8,2115.1,12.09693]
[1625172574360,7.08718,2115.8,2115.1,7.08693]
[1625172574463,7.08718,2115.8,2115.1,12.09693]
[1625172574796,7.08718,2115.8,2115.1,5.01]
[1625172574948,0.00954268,2115.6,2115.0,4.7611]
[1625172575048,0.00954268,2115.6,2115.0,9.7711]
[1625172576406,7.08825,2115.5,2115.0,9.7711]
[1625172577097,0.00954268,2115.6,2115.0,9.7711]
[1625172577653,7.09740268,2115.6,2115.0,9.7711]
[1625172581812,7.08786,2115.6,2115.1,30.15]
[1625172581911,10.91162249,2116.5,2115.3,0.07159157]
[1625172582012,0.00954277,2115.6,2115.3,0.08070053]
[1625172582111,2.77e-06,2115.6,2115.4,0.2]
[1625172582396,0.00954167,2115.9,2115.5,0.44646398]
[1625172582493,0.00954167,2115.9,2115.5,24.20811328]
[1625172582640,0.00954167,2115.9,2115.6,0.42440776]
[1625172582747,1.67e-06,2115.9,2115.6,9.16715075]
[1625172582892,1.67e-06,2115.9,2115.8,30.36380353]
[1625172582893,0.00954149,2115.9,2115.8,30.36380353]
[1625172582996,0.00954149,2115.9,2115.8,48.69136]
[1625172583099,0.00954149,2115.9,2115.8,55.64851536]
[1625172583238,0.00954149,2115.9,2115.8,54.46151536]
[1625172583398,0.2,2116.9,2115.8,58.34802835]
[1625172583488,0.2,2116.9,2116.3,3.54129]
[1625172583595,0.2,2116.9,2116.3,7.80339]
[1625172583742,0.00954121,2116.4,2116.3,12.2778546]
[1625172583844,0.00954121,2116.4,2116.3,5.1952]
[1625172584792,0.00954121,2116.4,2116.3,4.2621]
[1625172585640,0.00954121,2116.4,2116.3,9.2721]
[1625172585741,0.00954121,2116.4,2116.3,9.3721]
[1625172586759,0.00954121,2116.4,2116.3,4.3621]
[1625172586861,0.00954121,2116.4,2116.3,9.3721]
[1625172586962,0.00954121,2116.4,2116.3,17.3721]
[1625172587163,0.00954121,2116.4,2116.3,9.3721]
[1625172587711,0.00954121,2116.4,2116.3,4.2621]
[1625172588818,0.00954121,2116.4,2115.9,16.69101799]
[1625172588916,0.00954121,2116.4,2115.9,6.31567653]
[1625172591058,0.00954121,2116.4,2115.9,11.32567653]
[1625172591155,0.00954121,2116.4,2116.0,0.1]
[1625172591309,0.00954121,2116.4,2116.0,5.1416]
[1625172591504,0.00954121,2116.4,2116.1,7.224]
[1625172592055,0.00954121,2116.4,2116.1,0.14]
[1625172592209,0.00954121,2116.4,2115.9,6.31567653]
[1625172593016,0.00954121,2116.4,2115.9,11.32567653]
[1625172593215,0.00954121,2116.4,2115.9,18.41041653]
[1625172594317,0.00954121,2116.4,2116.0,0.06]
[1625172594419,0.00954121,2116.4,2116.2,7.08377]
[1625172594520,0.00954121,2116.4,2116.2,12.09377]
[1625172595061,0.00954121,2116.4,2116.3,0.59647822]
[1625172595161,0.00954121,2116.4,2116.2,12.09377]
[1625172595266,0.00954121,2116.4,2116.3,30.81780788]
[1625172595360,0.00954121,2116.4,2116.3,30.28]
[1625172595616,0.00954121,2116.4,2116.3,35.72078581]
[1625172595715,0.00954121,2116.4,2116.3,35.29]
[1625172595862,0.00954121,2116.4,2116.3,38.11663222]
[1625172595965,0.00954121,2116.4,2116.3,39.49891299]
[1625172596113,0.00954121,2116.4,2116.3,39.94453956]
[1625172596213,0.00954121,2116.4,2116.3,37.64491299]
[1625172596313,0.00954121,2116.4,2116.3,38.14922511]
[1625172596413,0.00954121,2116.4,2116.3,37.64491299]
[1625172596515,0.00954121,2116.4,2116.3,38.08113154]
[1625172596663,0.00954121,2116.4,2116.3,37.64491299]
[1625172596764,0.00954121,2116.4,2116.3,53.17853764]
[1625172596915,0.00954121,2116.4,2116.3,53.18163144]
[1625172597015,0.00954121,2116.4,2116.3,52.64491299]
[1625172597117,0.00954121,2116.4,2116.3,53.30250653]
[1625172597252,0.00954121,2116.4,2116.3,53.20185634]
[1625172597429,0.00954121,2116.4,2116.3,23.10185634]
[1625172597528,7.09185048,2117.7,2116.4,26.95]
[1625172597627,7.09185048,2117.7,2116.4,41.95]
[1625172597732,0.00991048,2117.7,2116.5,3.7408147]
[1625172597829,0.00991048,2117.6,2116.6,15.0]
[1625172597929,0.00991048,2117.6,2116.7,0.48921362]
[1625172598032,0.00991048,2117.6,2116.7,0.68921362]
[1625172598130,0.00991048,2117.6,2116.7,7.83284308]
[1625172598279,0.00954085,2116.8,2116.7,25.18775607]
[1625172598379,0.00954085,2116.8,2116.7,30.19775607]
[1625172598481,0.00954085,2116.8,2116.7,42.98007817]
[1625172598582,0.00954085,2116.8,2116.7,43.13007817]
[1625172598731,0.00954085,2116.8,2116.7,30.14775607]
[1625172598831,0.00954085,2116.8,2116.7,32.12175607]
[1625172598930,0.00954085,2116.8,2116.7,32.32175607]
[1625172599078,8.5e-07,2116.8,2116.7,30.34775607]
[1625172599182,0.20991048,2117.9,2116.7,38.34775607]
[1625172599329,0.20991048,2117.9,2116.8,30.3]
[1625172599480,0.20991048,2117.9,2116.9,14.41212093]
[1625172599577,0.20991048,2117.9,2116.9,36.72922093]
[1625172599681,0.00954011,2117.0,2116.9,37.37055924]
[1625172599831,0.00954011,2117.0,2116.9,41.65747223]
[1625172600127,0.00954011,2117.0,2116.9,39.92547223]
[1625172600331,0.00954011,2117.0,2116.9,42.03147223]
[1625172600629,0.00954011,2117.0,2116.9,47.92547223]
[1625172600780,0.00954011,2117.0,2116.9,39.92547223]
[1625172600929,0.00954011,2117.0,2116.9,33.96071223]
[1625172601128,0.00954011,2117.0,2116.9,26.99471223]
[1625172601378,0.00954011,2117.0,2116.9,28.85471223]
[1625172601705,0.00954011,2117.0,2116.9,26.99471223]
[1625172602409,0.00954011,2117.0,2116.9,32.00471223]
[1625172602506,0.00954011,2117.0,2116.9,56.79871223]
[1625172602657,0.00954011,2117.0,2116.9,30.25882223]
[1625172602759,0.00954011,2117.0,2116.9,28.46482223]
[1625172602860,0.00954011,2117.0,2116.9,25.42205299]
[1625172602960,0.00954011,2117.0,2116.9,23.06714]
[1625172603157,0.00954011,2117.0,2116.9,15.9879]
[1625172603261,0.00954011,2117.0,2116.9,16.53769405]
[1625172603460,0.00954011,2117.0,2116.9,23.61693405]
[1625172603815,0.00954011,2117.0,2116.9,23.06714]
[1625172604421,0.00954011,2117.0,2116.9,25.42205299]
[1625172604770,0.00954011,2117.0,2116.9,25.91013979]
[1625172604870,0.00954011,2117.0,2116.9,32.74783979]
[1625172605168,0.00954011,2117.0,2116.9,32.98270458]
[1625172609399,0.00954011,2117.0,2116.9,33.00252045]
[1625172609500,0.00954011,2117.0,2116.9,48.01495479]
[1625172609603,0.00954011,2117.0,2116.9,32.99513892]
[1625172609801,0.00954011,2117.0,2116.9,33.00757326]
[1625172612573,0.00954011,2117.0,2116.9,32.51948646]
[1625172612983,0.00954011,2117.0,2116.9,47.51948646]
[1625172613071,0.00954011,2117.0,2116.9,32.51948646]
[1625172613173,0.00954011,2117.0,2116.9,29.57418646]
[1625172613373,0.00954011,2117.0,2116.9,26.98440868]
[1625172613474,0.00954011,2117.0,2116.9,23.09200868]
[1625172618812,1.1e-07,2117.0,2116.9,35.47427438]
[1625172618913,0.00991048,2117.7,2116.9,35.47427438]
[1625172619062,0.00953965,2117.0,2116.9,28.60445923]
[1625172619161,0.00953965,2117.0,2116.9,30.84434485]
[1625172619263,0.00953965,2117.0,2116.9,37.92340485]
[1625172619412,0.1859,2117.9,2116.9,54.75383919]
[1625172619565,0.00953937,2117.0,2116.9,45.65677919]
[1625172619714,0.00953937,2117.0,2116.9,46.57309855]
[1625172619912,0.00953937,2117.0,2116.9,46.58553289]
[1625172620063,0.00953937,2117.0,2116.9,48.66153289]
[1625172620214,0.00953937,2117.0,2116.9,48.86153289]
[1625172620315,0.00953937,2117.0,2116.9,40.86153289]
[1625172620461,0.00953937,2117.0,2116.9,46.83313289]
[1625172620662,0.00953937,2117.0,2116.9,48.74113289]
[1625172620915,0.00953937,2117.0,2116.9,40.74113289]
[1625172621014,0.00953937,2117.0,2116.9,48.74113289]
[1625172621111,0.00953937,2117.0,2116.9,46.83313289]
[1625172621411,0.00953937,2117.0,2116.9,55.92171289]
[1625172621611,0.00953937,2117.0,2116.9,47.92171289]
[1625172621713,0.00953937,2117.0,2116.9,45.91171289]
[1625172621978,0.00953937,2117.0,2116.9,47.80771289]
[1625172622177,0.00953937,2117.0,2116.9,45.91171289]
[1625172622276,0.00953937,2117.0,2116.9,53.91171289]
[1625172622480,0.00953937,2117.0,2116.9,55.84371289]
[1625172622681,0.00953937,2117.0,2116.9,53.91171289]
[1625172622781,0.00953937,2117.0,2116.9,54.06171289]
[1625172623031,0.00953937,2117.0,2116.9,55.98171289]
[1625172623132,0.00953937,2117.0,2116.9,47.98171289]
[1625172623232,0.00953937,2117.0,2116.9,46.06171289]
[1625172623530,0.00953937,2117.0,2116.9,47.77701289]
[1625172623631,0.00953937,2117.0,2116.9,46.23721289]
[1625172623731,0.00953937,2117.0,2116.9,44.31721289]
[1625172623835,0.00953937,2117.0,2116.9,52.31721289]
[1625172623933,0.00953937,2117.0,2116.9,45.83411289]
[1625172624084,0.00953937,2117.0,2116.9,47.85741289]
[1625172624228,0.00953937,2117.0,2116.9,46.18321289]
[1625172624327,0.00953937,2117.0,2116.9,53.98751289]
[1625172624428,0.00953937,2117.0,2116.9,44.31721289]
[1625172624531,0.00953937,2117.0,2116.9,47.99831289]
[1625172624631,0.00953937,2117.0,2116.9,30.27245919]
[1625172624731,0.00953937,2117.0,2116.9,29.52396497]
[1625172624844,0.00953937,2117.0,2116.9,28.16845058]
[1625172625034,0.00953937,2117.0,2116.9,29.71935058]
[1625172625135,0.00953937,2117.0,2116.9,28.16845058]
[1625172625483,0.00953937,2117.0,2116.9,29.92125058]
[1625172625635,0.00953937,2117.0,2116.9,29.83035058]
[1625172625736,0.00953937,2117.0,2116.9,29.71775058]
[1625172625937,0.00953937,2117.0,2116.9,28.16845058]
[1625172626035,0.00953937,2117.0,2116.9,29.92525058]
[1625172626186,0.00953937,2117.0,2116.9,27.63996497]
[1625172626525,3.80373937,2117.0,2116.9,15.40138497]
[1625172626620,3.80373937,2117.0,2116.9,0.02486868]
[1625172626775,3.76327899,2117.0,2116.9,0.02486868]
[1625172627552,27.0,2116.9,2116.2,6.31646069]
[1625172627733,32.01,2116.9,2116.2,6.31646069]
[1625172627985,0.04,2116.8,2116.2,6.31646069]
[1625172628287,8.77327899,2117.0,2116.2,6.31646069]
[1625172628634,7.08417,2116.6,2116.2,6.31646069]
[1625172629178,9.44556,2116.8,2116.2,6.31646069]
[1625172629277,8.77327899,2117.0,2116.2,6.31646069]
[1625172630329,7.08432,2116.8,2116.2,6.31646069]
[1625172630833,7.08432,2116.8,2115.7,10.9522]
[1625172630977,0.08,2116.7,2115.7,10.9522]
[1625172631229,8.77327899,2117.0,2115.7,10.9522]
[1625172631479,7.08591,2116.4,2115.4,10.4786]
[1625172631577,10.79931,2116.4,2115.4,6.31568882]
[1625172631775,3.7134,2116.4,2115.4,6.31568882]
[1625172631926,3.7134,2116.4,2115.5,0.1]
[1625172632324,3.7134,2116.4,2115.5,2.25873067]
[1625172632424,3.7134,2116.4,2115.6,15.0]
[1625172632624,12.11192936,2117.0,2115.8,7.08433]
[1625172632822,12.11192936,2117.0,2115.8,12.09433]
[1625172632922,12.11192936,2117.0,2115.8,7.08433]
[1625172633022,12.11192936,2117.0,2115.8,12.09433]
[1625172633276,5.02767936,2117.0,2115.8,12.09433]
[1625172633474,0.01767936,2117.0,2115.8,12.09433]
[1625172633623,5.02767936,2117.0,2115.8,12.09433]
[1625172633724,0.01767936,2117.0,2115.8,12.09433]
[1625172633822,5.02767936,2117.0,2115.8,12.09433]
[1625172634276,0.01767936,2117.0,2115.8,12.09433]
[1625172634377,5.02767936,2117.0,2115.8,12.09433]
[1625172634476,7.08469,2116.8,2115.8,12.09433]
[1625172635732,0.01767936,2117.0,2115.8,5.01]
[1625172635977,0.01767936,2117.0,2115.7,0.72857529]
[1625172636127,0.01767936,2117.0,2115.6,17.73828892]
[1625172636828,0.01767936,2117.0,2115.6,32.73828892]
[1625172636931,7.10145936,2117.0,2115.9,7.08369]
[1625172637029,12.11145936,2117.0,2115.9,16.86809]
[1625172638181,5.02767936,2117.0,2115.9,4.7744]
[1625172638284,8.47667936,2117.0,2115.8,0.20663019]
[1625172638382,0.06,2116.9,2115.7,0.56693273]
[1625172638531,0.06,2116.9,2115.6,10.0668]
[1625172639284,8.74573001,2117.0,2115.6,10.0668]
[1625172639383,7.08559,2116.3,2115.6,10.0668]
[1625172639483,9.44679,2116.8,2115.5,0.29100627]
[1625172639583,14.45679,2116.8,2115.4,6.31568882]
[1625172639682,14.45679,2116.8,2115.4,11.84915917]
[1625172640142,14.45679,2116.8,2115.4,26.84915917]
[1625172640241,14.45679,2116.8,2115.4,11.32568882]
[1625172640444,7.08544,2116.4,2115.4,11.32568882]
[1625172641343,7.08544,2116.4,2115.4,11.75361181]
[1625172641495,7.08544,2116.4,2115.5,0.1]
[1625172641594,14.45679,2116.8,2115.5,0.1]
[1625172641945,14.45679,2116.8,2115.5,1.87]
[1625172642045,14.45679,2116.8,2115.6,15.44039928]
[1625172642235,2.58479027,2117.0,2115.6,18.87379928]
[1625172642326,2.58479027,2117.0,2115.6,24.69169928]
[1625172642558,2.58479027,2117.0,2115.7,0.1]
[1625172642655,2.58479027,2117.0,2115.7,7.08403]
[1625172642810,2.58479027,2117.0,2115.6,4.9749919]
[1625172642906,2.58479027,2117.0,2115.6,9.9849919]
[1625172643459,2.58479027,2117.0,2115.6,9.1770919]
[1625172643558,2.58479027,2117.0,2115.6,8.88379928]
[1625172643657,7.59479027,2117.0,2115.6,8.88379928]
[1625172644520,7.08478,2116.6,2115.6,8.88379928]
[1625172645563,7.08478,2116.6,2115.7,0.14]
[1625172646115,7.08478,2116.6,2115.6,5.45039928]
[1625172646364,7.08478,2116.6,2115.6,0.44039928]
[1625172646614,7.08478,2116.6,2115.4,21.242009]
[1625172647140,7.08478,2116.6,2115.4,20.77121882]
[1625172647388,7.08478,2116.6,2115.4,21.20930942]
[1625172647538,7.08478,2116.6,2115.4,20.77121882]
[1625172647637,7.08478,2116.6,2115.4,21.28120323]
[1625172647738,7.08478,2116.6,2115.4,20.77121882]
[1625172647888,7.08478,2116.6,2115.5,0.08]
[1625172648390,7.08478,2116.6,2115.4,35.77121882]
[1625172648490,7.08478,2116.6,2115.5,1.77]
[1625172648593,7.08478,2116.6,2115.6,7.08425]
[1625172648794,7.08478,2116.6,2115.6,12.52678298]
[1625172649477,7.08478,2116.6,2115.6,27.52678298]
[1625172649727,7.08394,2116.8,2115.7,0.14]
[1625172650326,7.08394,2116.8,2115.6,20.44253298]
[1625172650528,12.09394,2116.8,2115.6,5.44253298]
[1625172650732,12.09394,2116.8,2115.6,0.43253298]
[1625172650932,12.09394,2116.8,2115.4,36.05600485]
[1625172651033,12.09394,2116.8,2115.4,36.28115078]
[1625172651246,12.09394,2116.8,2115.6,7.08451]
[1625172651392,12.09394,2116.8,2115.6,7.55293055]
[1625172651541,12.09394,2116.8,2115.6,12.09451]
[1625172653729,12.09394,2116.8,2115.6,5.01]
[1625172653928,12.09394,2116.8,2115.4,20.77121882]
[1625172655488,12.09394,2116.8,2115.5,15.0]
[1625172655637,7.08394,2116.8,2115.5,20.11]
[1625172655929,7.08394,2116.8,2115.5,26.0321]
[1625172656086,7.08394,2116.8,2115.5,24.1121]
[1625172656180,7.08394,2116.8,2115.5,24.14801728]
[1625172656329,7.08394,2116.8,2115.6,0.08]
[1625172657082,12.09394,2116.8,2115.6,0.08]
[1625172657182,7.08394,2116.8,2115.6,0.08]
[1625172657283,12.09394,2116.8,2115.5,24.0121]
[1625172657381,12.09394,2116.8,2115.5,20.01]
[1625172657590,7.08394,2116.8,2115.8,7.08394]
[1625172657689,12.09394,2116.8,2115.8,7.08394]
[1625172657793,12.09394,2116.8,2115.8,12.09394]
[1625172658132,12.09394,2116.8,2115.8,5.01]
[1625172658239,12.09394,2116.8,2115.5,14.45557]
[1625172658332,16.70984,2116.8,2115.5,14.45557]
[1625172658884,20.2524199,2116.8,2115.4,6.31568882]
[1625172659038,3.54309,2116.5,2115.4,6.31568882]
[1625172659235,8.55309,2116.5,2115.4,6.31568882]
[1625172659432,14.67157715,2116.5,2115.4,6.31568882]
[1625172659532,3.5435,2116.2,2115.4,6.31568882]
[1625172659732,12.3568,2116.2,2115.4,6.31568882]
[1625172660034,7.0871,2115.8,2115.4,6.31568882]
[1625172660830,7.0871,2115.8,2114.8,21.8235]
[1625172660931,7.0871,2115.8,2115.0,5.01]
[1625172661031,7.0871,2115.8,2114.8,33.14902984]
[1625172661428,7.0871,2115.8,2114.8,22.15062984]
[1625172661729,7.0871,2115.8,2114.9,0.08]
[1625172662132,7.0871,2115.8,2114.9,7.1674]
[1625172662231,7.0871,2115.8,2114.9,12.1774]
[1625172663131,7.0871,2115.8,2114.9,12.0974]
[1625172670151,7.08642,2116.0,2115.2,7.08634]
[1625172670247,12.99195,2116.2,2115.0,0.17742242]
[1625172670351,5.01,2116.0,2115.0,0.06]
[1625172670447,0.06,2115.9,2114.9,9.59955392]
[1625172670647,0.06,2115.9,2114.9,7.35618929]
[1625172670753,17.76211669,2116.3,2114.9,5.03236362]
[1625172671149,17.76211669,2116.3,2114.9,0.01246362]
[1625172671150,25.76211669,2116.3,2114.9,0.01246362]
[1625172671350,3.5440913,2116.1,2114.9,0.01246362]
[1625172671531,11.6114913,2116.1,2114.9,0.01246362]
[1625172671615,11.6114913,2116.1,2114.5,21.49221889]
[1625172671616,0.08,2116.0,2114.5,21.49221889]
[1625172671716,9.4515,2115.6,2114.4,10.0413]
[1625172671820,12.8314,2115.6,2114.4,10.0413]
[1625172671919,21.3863786,2115.6,2114.4,10.0413]
[1625172672704,8.3899,2115.6,2114.4,10.0413]
[1625172672893,9.45328,2115.1,2114.4,17.13106]
[1625172672991,7.08976,2115.2,2114.4,17.13106]
[1625172673092,12.09976,2115.2,2114.4,17.13106]
[1625172673645,12.09976,2115.2,2114.4,7.08976]
[1625172673787,12.09976,2115.2,2114.2,16.8657388]
[1625172673887,12.09976,2115.2,2114.2,21.8757388]
[1625172673988,12.09976,2115.2,2114.1,21.1869]
[1625172674142,12.09976,2115.2,2114.1,10.4795]
[1625172676296,5.01,2115.2,2114.1,10.4795]
[1625172676496,7.08976,2115.2,2114.1,22.58054]
[1625172676596,7.08976,2115.2,2114.2,0.06]
[1625172676697,12.09976,2115.2,2114.2,0.06]
[1625172676950,12.09976,2115.2,2114.1,17.57054]
[1625172681443,7.08976,2115.2,2114.1,22.58054]
[1625172681545,12.09976,2115.2,2114.1,22.58054]
[1625172682047,13.01,2115.2,2114.1,10.4795]